[Event "GER-chW 2019"]
[Site "Magdeburg"]
[Date "2019.05.27"]
[Round "2.7"]
[White "Lowke, Kathrin"]
[Black "Ries, Jutta"]
[Result "1-0"]
[ECO "B03"]
[WhiteElo "1887"]
[BlackElo "2017"]
[Annotator "NA RC"]
[PlyCount "91"]
[EventDate "2019.05.26"]
[EventType "tourn"]
[EventCountry "GER"]
[SourceTitle "playchess.com"]
[Source "ChessBase"]
[SourceQuality "1"]
[TimeControl "40/5400+30:1800+30"]

1. e4 {[%emt 0:00:00]} Nf6 {[%emt 0:00:00]} 2. e5 {[%emt 0:00:00]} Nd5 {[%emt 0:00:00]} 3. d4 {[%emt 0:00:00]} d6 {[%emt 0:00:00]} 4. c4 {[%emt 0:00:00]} Nb6 {[%emt 0:00:00]} 5. exd6 {[%emt 0:00:07]} exd6 {[%emt 0:02:33]} 6. Nc3 {[%emt 0:01:28]} Bf5 {[%emt 0:02:54]} 7. Bd3 {[%emt 0:05:35]} Bxd3 {[%emt 0:01:09]} 8. Qxd3 {[%emt 0:00:08]} Be7 {[%emt 0:00:25]} 9. Nge2 {[%emt 0:00:33]} O-O {[%emt 0:01:13]} 10. O-O {[%emt 0:00:17]} Re8 {[%emt 0:04:20]} 11. b3 {[%emt 0:00:53]} Nc6 {[%emt 0:05:29]} 12. Bf4 {[%emt 0:07:25]} Bg5 {[%emt 0:32:38]} 13. Qd2 {[%emt 0:04:13]} Bxf4 {[%emt 0:02:49]} 14. Qxf4 {[%emt 0:02:14]} Ne7 {[%emt 0:09:05]} 15. Rfe1 {[%emt 0:01:46]} Ng6 {[%emt 0:01:59]} 16. Qf3 {[%emt 0:01:14]} c6 {[%emt 0:06:52]} 17. Rad1 {[%emt 0:07:12]} Re6 {[%emt 0:11:18]} 18. d5 {[%emt 0:05:57]} Ne5 {[%emt 0:10:00]} 19. Qe4 {[%emt 0:02:30]} cxd5 {[%emt 0:00:26]} 20. cxd5 {[%emt 0:01:46]} Rh6 {[%emt 0:00:44]} 21. Ng3 {[%emt 0:03:07]} Rh4 {[%emt 0:01:40]} 22. Qe2 {[%emt 0:00:33]} Ng6 {[%emt 0:03:38]} 23. Nf5 {[%emt 0:02:54]} Rf4 {[%emt 0:00:01]} 24. Ne7+ {[%emt 0:00:16]} Nxe7 {[%emt 0:00:32]} 25. Qxe7 {[%emt 0:00:05]} Rf6 {[%emt 0:01:34]} 26. Qxd8+ {[%emt 0:05:14]} Rxd8 {[%emt 0:00:01]} 27. Re7 {[%emt 0:00:06]} Rc8 {[%emt 0:00:28]} 28. Ne4 {[%emt 0:00:33]} Rg6 {[%emt 0:00:40]} 29. Rxb7 {[%emt 0:00:25]} h6 {[%emt 0:00:54]} 30. Rxa7 {[%emt 0:02:25]} Nxd5 {[%emt 0:00:08]} 31. Rd7 {[%emt 0:01:03]} Nf4 {[%emt 0:00:45]} 32. g3 {[%emt 0:00:44]} d5 {[%emt 0:00:39]} 33. Nd6 {[%emt 0:02:27]} Rc2 {[%emt 0:00:02]} 34. Rd8+ {[%emt 0:03:46]} Kh7 {[%emt 0:00:01]} 35. Nxf7 {[%emt 0:00:53]} Nh3+ {[%emt 0:00:42]} 36. Kg2 {[%emt 0:00:34]} Rxf2+ {[%emt 0:00:30]} 37. Kxh3 {[%emt 0:00:05]} Rxf7 {[%emt 0:00:06]} 38. R1xd5 {[%emt 0:00:46]} Rf2 {[%emt 0:01:13]} 39. Rd2 {[%emt 0:03:55]} Rgf6 {[%emt 0:00:05]} 40. a4 {[%emt 0:01:32]} h5 {[%emt 0:01:33]} 41. Rxf2 {[%emt 0:40:10]} Rxf2 {[%emt 0:01:04]} 42. Rd3 {[%emt 0:00:00]} Ra2 {[%emt 0:10:03]} 43. g4 {[%emt 0:00:00]} hxg4+ {[%emt 0:03:30]} 44. Kxg4 {[%emt 0:00:00]} Kg6 {[%emt 0:01:28]} 45. h3 {[%emt 0:00:00]} Kf6 {[%emt 0:01:12]} 46. Kf4 {[%emt 0:00:00]} 1-0

[Event "GER-chW 2019"]
[Site "Magdeburg"]
[Date "2019.05.27"]
[Round "2.8"]
[White "Just, Anita"]
[Black "Mehling, Katharina"]
[Result "1/2-1/2"]
[ECO "C14"]
[WhiteElo "1866"]
[BlackElo "1974"]
[Annotator "NA RC"]
[PlyCount "123"]
[EventDate "2019.05.26"]
[EventType "tourn"]
[EventCountry "GER"]
[SourceTitle "playchess.com"]
[Source "ChessBase"]
[SourceQuality "1"]
[TimeControl "40/5400+30:1800+30"]

1. e4 {[%emt 0:00:00]} e6 {[%emt 0:00:00]} 2. d4 {[%emt 0:00:00]} d5 {[%emt 0:00:00]} 3. Nc3 {[%emt 0:00:00]} Nf6 {[%emt 0:00:00]} 4. Bg5 {[%emt 0:00:04]} Be7 {[%emt 0:00:31]} 5. e5 {[%emt 0:00:07]} Nfd7 {[%emt 0:00:07]} 6. Bxe7 {[%emt 0:00:06]} Qxe7 {[%emt 0:00:06]} 7. f4 {[%emt 0:00:16]} a6 {[%emt 0:00:23]} 8. Nf3 {[%emt 0:00:19]} Nb6 {[%emt 0:00:25] C14: French: Classical System: 4 Bg5 Be7 main line} (8... c5 9. dxc5 Nxc5 10. Bd3 b5 11. a3 Bb7 12. O-O Nbd7 13. Qe1 Nxd3 14. cxd3 O-O 15. Ne2 d4 16. Nexd4 Nc5 17. Qe3 Qd7 18. Rac1 {0-1 (39) Djukic,N (2572)-Nisipeanu,L (2670) Skopje 2019}) 9. Qd2 {[%emt 0:06:14]} Bd7 {[%emt 0:00:20]} 10. O-O-O {[%emt 0:02:18]} Bb5 {[%emt 0:01:34]} 11. Kb1 {[%emt 0:15:18]} Bxf1 {[%emt 0:00:58]} 12. Rhxf1 {[%emt 0:00:52]} Nc4 {[%emt 0:00:29]} 13. Qc1 {[%emt 0:01:33]} Nc6 {[%emt 0:03:36]} 14. f5 {[%emt 0:08:20]} O-O-O $146 {[%emt 0:02:13]} ({Predecessor:} 14... h6 15. g4 O-O-O 16. b3 {1-0 (37) Gerzhoy,L (2469)-Haskel,J (2241) Wheeling 2010}) 15. fxe6 {[%emt 0:12:00]} fxe6 {[%emt 0:06:13]} 16. Ng5 {[%emt 0:03:09]} Rdf8 {[%emt 0:10:12]} 17. Nf3 {[%emt 0:09:58]} h6 {[%emt 0:04:28]} 18. Ne2 {[%emt 0:01:52]} Rf7 {[%emt 0:07:26]} 19. c3 {[%emt 0:13:12]} Rhf8 {[%emt 0:06:35]} 20. b3 {[%emt 0:02:44]} Nb6 {[%emt 0:05:14]} 21. Ng3 {[%emt 0:06:18]} Qe8 {[%emt 0:09:10]} 22. Rfe1 {[%emt 0:03:04]} Ne7 {[%emt 0:06:14]} 23. Nf1 {[%emt 0:02:07]} Ng6 {[%emt 0:05:14]} 24. Ne3 {[%emt 0:02:19]} Nf4 {[%emt 0:02:03]} 25. Ng1 {[%emt 0:01:57]} Kb8 {[%emt 0:10:14]} 26. Rf1 {[%emt 0:01:39]} Qb5 {[%emt 0:03:58]} 27. Qc2 {[%emt 0:01:53]} Nc4 {[%emt 0:02:09]} 28. Nxc4 {[%emt 0:00:58]} dxc4 {[%emt 0:00:10]} 29. b4 {[%emt 0:00:49]} Nd5 {[%emt 0:02:27]} 30. Rxf7 {[%emt 0:00:39]} Rxf7 {[%emt 0:00:06]} 31. a4 {[%emt 0:00:33]} Qxa4 {[%emt 0:01:58]} 32. Qxa4 {[%emt 0:02:58]} Nxc3+ {[%emt 0:00:07]} 33. Kc2 {[%emt 0:00:07]} Nxa4 {[%emt 0:00:08]} 34. Nf3 {[%emt 0:00:50]} b5 {[%emt 0:03:06]} 35. d5 {[%emt 0:00:38]} exd5 {[%emt 0:02:55]} 36. Rxd5 {[%emt 0:00:06]} Nb6 {[%emt 0:01:52]} 37. Rd8+ {[%emt 0:00:17]} Kb7 {[%emt 0:00:45]} 38. e6 {[%emt 0:00:35]} Re7 {[%emt 0:00:48]} 39. Nd4 {[%emt 0:00:28]} Nc8 {[%emt 0:01:52]} 40. Rd7 {[%emt 0:01:38]} g5 {[%emt 0:00:40]} 41. Kc3 {[%emt 0:31:21]} Nb6 {[%emt 0:31:35]} 42. Rd8 {[%emt 0:00:00]} c6 {[%emt 0:00:00]} 43. Rh8 {[%emt 0:00:00]} Nd5+ {[%emt 0:00:00]} 44. Kb2 {[%emt 0:00:00]} Nxb4 {[%emt 0:00:00]} 45. Rxh6 {[%emt 0:00:00]} Nd3+ {[%emt 0:00:00]} 46. Kb1 {[%emt 0:00:00]} Nc5 {[%emt 0:00:00]} 47. Rf6 {[%emt 0:00:00]} Kb6 {[%emt 0:00:00]} 48. Rf7 {[%emt 0:00:00]} Re8 {[%emt 0:00:00]} 49. e7 {[%emt 0:00:00]} Kc7 {[%emt 0:00:00]} 50. Rf6 {[%emt 0:00:00]} Ne4 {[%emt 0:00:42]} 51. Rxc6+ {[%emt 0:00:00]} Kd7 {[%emt 0:01:12]} 52. Rxa6 {[%emt 0:00:00]} Kxe7 {[%emt 0:01:44]} 53. Re6+ {[%emt 0:01:49]} Kf7 {[%emt 0:00:35]} 54. Rxe8 {[%emt 0:00:19]} Kxe8 {[%emt 0:00:05]} 55. Nxb5 {[%emt 0:00:20]} Kd7 {[%emt 0:00:45]} 56. Kc2 {[%emt 0:00:18]} Kc6 {[%emt 0:00:28]} 57. Nd4+ {[%emt 0:02:21]} Kd5 {[%emt 0:01:35]} 58. Nf5 {[%emt 0:01:13]} Ke5 {[%emt 0:00:41]} 59. Ne3 {[%emt 0:00:30]} Kd4 {[%emt 0:00:25]} 60. Nf5+ {[%emt 0:00:26]} Ke5 {[%emt 0:00:56]} 61. Ne3 {[%emt 0:00:06]} Kd4 {[%emt 0:00:09]} 62. Nf5+ {[%emt 0:00:07]} 1/2-1/2

[Event "GER-chW 2019"]
[Site "Magdeburg"]
[Date "2019.05.27"]
[Round "2.9"]
[White "Zimmer, Elke"]
[Black "Bashylina, Luisa"]
[Result "1-0"]
[ECO "A48"]
[WhiteElo "1926"]
[BlackElo "1812"]
[Annotator "NA RC"]
[PlyCount "93"]
[EventDate "2019.05.26"]
[EventType "tourn"]
[EventCountry "GER"]
[SourceTitle "playchess.com"]
[Source "ChessBase"]
[SourceQuality "1"]
[TimeControl "40/5400+30:1800+30"]

1. d4 {[%emt 0:00:00]} Nf6 {[%emt 0:00:00]} 2. Nf3 {[%emt 0:00:00]} g6 {[%emt 0:00:00]} 3. c3 {[%emt 0:00:41]} Bg7 {[%emt 0:00:18]} 4. Bf4 {[%emt 0:00:51]} d6 {[%emt 0:00:06]} 5. Nbd2 {[%emt 0:00:51]} O-O {[%emt 0:01:03]} 6. h3 {[%emt 0:00:14]} Nc6 {[%emt 0:00:19]} 7. e4 {[%emt 0:02:48]} Nd7 {[%emt 0:02:31]} 8. Be3 {[%emt 0:09:44]} e5 {[%emt 0:01:23]} 9. Bb5 {[%emt 0:04:30]} Ne7 {[%emt 0:16:15]} 10. O-O {[%emt 0:04:33]} a6 {[%emt 0:08:22]} 11. Ba4 {[%emt 0:04:50]} Kh8 {[%emt 0:05:39]} 12. Bb3 {[%emt 0:00:14]} h6 {[%emt 0:04:17]} 13. dxe5 {[%emt 0:00:56]} dxe5 {[%emt 0:01:32]} 14. Qc1 {[%emt 0:02:15]} b5 {[%emt 0:05:19]} 15. Rd1 {[%emt 0:06:22]} Bb7 {[%emt 0:08:37]} 16. Bc2 {[%emt 0:00:18]} Ng8 {[%emt 0:01:47]} 17. Nb3 {[%emt 0:00:14]} Qc8 {[%emt 0:02:10]} 18. Na5 {[%emt 0:00:14]} c5 {[%emt 0:00:35]} 19. Nxb7 {[%emt 0:00:42]} Qxb7 {[%emt 0:00:07]} 20. a4 {[%emt 0:00:57]} c4 {[%emt 0:03:33]} 21. axb5 {[%emt 0:00:40]} axb5 {[%emt 0:00:15]} 22. Rxa8 {[%emt 0:00:05]} Rxa8 {[%emt 0:00:09]} 23. Qd2 {[%emt 0:02:45]} Nf8 {[%emt 0:11:52]} 24. Qd6 {[%emt 0:03:21]} f6 {[%emt 0:02:18]} 25. Bc5 {[%emt 0:00:30]} Rc8 {[%emt 0:01:47]} 26. Bb4 {[%emt 0:00:56]} h5 {[%emt 0:01:15]} 27. Qd5 {[%emt 0:02:42]} Qb6 {[%emt 0:02:43]} 28. Nh4 {[%emt 0:00:52]} Kh7 {[%emt 0:00:54]} 29. Bxf8 {[%emt 0:05:52]} Rxf8 {[%emt 0:00:30]} 30. b3 {[%emt 0:00:06]} Qa6 {[%emt 0:03:15]} 31. bxc4 {[%emt 0:00:54]} bxc4 {[%emt 0:00:07]} 32. g3 {[%emt 0:04:12]} Nh6 {[%emt 0:01:46]} 33. Ng2 {[%emt 0:00:25]} Rb8 {[%emt 0:03:38]} 34. Ne3 {[%emt 0:01:01]} Rc8 {[%emt 0:01:39]} 35. Qd7 {[%emt 0:01:05]} Qc6 {[%emt 0:03:10]} 36. Ba4 {[%emt 0:01:33]} Qxd7 {[%emt 0:00:34]} 37. Rxd7 {[%emt 0:00:11]} f5 {[%emt 0:02:29]} 38. Bc2 {[%emt 0:02:59]} fxe4 {[%emt 0:02:22]} 39. Bxe4 {[%emt 0:00:20]} Ng8 {[%emt 0:00:59]} 40. Nd5 {[%emt 0:00:26]} Rc6 {[%emt 0:03:20]} 41. Kg2 {[%emt 0:42:46]} Kh6 {[%emt 0:04:06]} 42. Rf7 {[%emt 0:00:00]} Rc5 {[%emt 0:07:20]} 43. Kf3 {[%emt 0:00:00]} Rc6 {[%emt 0:01:48]} 44. g4 {[%emt 0:00:00]} hxg4+ {[%emt 0:00:36]} 45. hxg4 {[%emt 0:00:00]} Bh8 {[%emt 0:03:19]} 46. Rf8 {[%emt 0:00:00]} Kg7 {[%emt 0:01:20]} 47. Rxg8+ {[%emt 0:00:00]} 1-0

[Event "GER-chW 2019"]
[Site "Magdeburg"]
[Date "2019.05.27"]
[Round "2.10"]
[White "Liu, Sijia Anna"]
[Black "Braun, Kristin"]
[Result "1-0"]
[ECO "B35"]
[WhiteElo "1689"]
[BlackElo "1895"]
[Annotator "NA RC"]
[PlyCount "83"]
[EventDate "2019.05.26"]
[EventType "tourn"]
[EventCountry "GER"]
[SourceTitle "playchess.com"]
[Source "ChessBase"]
[SourceQuality "1"]
[TimeControl "40/5400+30:1800+30"]

1. e4 {[%emt 0:00:00]} c5 {[%emt 0:00:00]} 2. Nf3 {[%emt 0:00:00]} Nc6 {[%emt 0:00:00]} 3. d4 {[%emt 0:00:00]} cxd4 {[%emt 0:00:00]} 4. Nxd4 {[%emt 0:00:04]} g6 {[%emt 0:00:11]} 5. Nc3 {[%emt 0:01:34]} Bg7 {[%emt 0:00:10]} 6. Be3 {[%emt 0:00:11]} Nf6 {[%emt 0:00:13]} 7. Bc4 {[%emt 0:03:28]} O-O {[%emt 0:00:17]} 8. O-O {[%emt 0:02:58]} d6 {[%emt 0:00:47]} 9. h3 {[%emt 0:01:57]} Bd7 {[%emt 0:01:05]} 10. Bb3 {[%emt 0:07:39]} Rc8 {[%emt 0:03:49]} 11. f4 {[%emt 0:03:54]} Na5 {[%emt 0:09:39]} 12. e5 {[%emt 0:06:04]} dxe5 {[%emt 0:04:00]} 13. fxe5 {[%emt 0:00:24]} Nh5 {[%emt 0:12:27]} 14. e6 {[%emt 0:07:48]} Bxd4 {[%emt 0:21:37]} 15. exf7+ {[%emt 0:03:54]} Kg7 {[%emt 0:01:22]} 16. Qxd4+ {[%emt 0:06:57]} Nf6 {[%emt 0:00:34]} 17. Ne4 {[%emt 0:06:21]} Nxb3 {[%emt 0:02:49]} 18. axb3 {[%emt 0:00:26]} Bf5 {[%emt 0:08:15]} 19. Nxf6 {[%emt 0:03:38]} exf6 {[%emt 0:00:41]} 20. Qh4 {[%emt 0:06:14]} Rxf7 {[%emt 0:02:45]} 21. Rad1 {[%emt 0:06:35]} Qe7 {[%emt 0:02:15]} 22. Rfe1 {[%emt 0:00:46]} Qc7 {[%emt 0:01:10]} 23. Bd4 {[%emt 0:05:25]} Bxc2 {[%emt 0:06:44]} 24. Rd2 {[%emt 0:00:57]} Bxb3 {[%emt 0:01:59]} 25. Rf2 {[%emt 0:01:15]} Rcf8 {[%emt 0:01:26]} 26. Ref1 {[%emt 0:01:24]} Qd6 {[%emt 0:01:01]} 27. Bc3 {[%emt 0:02:51]} Qb6 {[%emt 0:06:14]} 28. Bd4 {[%emt 0:03:29]} Qd6 {[%emt 0:01:25]} 29. Rf4 {[%emt 0:04:40]} a6 {[%emt 0:02:36]} 30. Bc3 {[%emt 0:02:41]} b5 {[%emt 0:01:10]} 31. Kh1 {[%emt 0:01:05]} Bc4 {[%emt 0:00:59]} 32. R1f3 {[%emt 0:01:28]} Qd1+ {[%emt 0:02:57]} 33. Kh2 {[%emt 0:00:15]} Qd6 {[%emt 0:00:03]} 34. Rg3 {[%emt 0:04:51]} Qc7 {[%emt 0:02:44]} 35. Qg5 {[%emt 0:01:21]} Bd3 {[%emt 0:01:47]} 36. Rh4 {[%emt 0:01:59]} Kg8 {[%emt 0:00:07]} 37. Qd5 {[%emt 0:01:34]} Bc4 {[%emt 0:00:31]} 38. Qf3 {[%emt 0:00:22]} Qb7 {[%emt 0:01:05]} 39. Qh5 {[%emt 0:00:57]} Qd5 {[%emt 0:00:45]} 40. Rxg6+ {[%emt 0:00:33]} Rg7 {[%emt 0:01:28]} 41. Rxg7+ {[%emt 0:30:29]} Kxg7 {[%emt 0:30:07]} 42. Qxh7# {[%emt 0:00:05]} 1-0

[Event "GER-chW 2019"]
[Site "Magdeburg"]
[Date "2019.05.28"]
[Round "3.1"]
[White "Schulze, Lara"]
[Black "Michna, Marta"]
[Result "1/2-1/2"]
[ECO "C03"]
[WhiteElo "2160"]
[BlackElo "2355"]
[Annotator "ChessBase"]
[PlyCount "97"]
[EventDate "2019.05.26"]
[EventType "tourn"]
[EventCountry "GER"]
[SourceTitle "playchess.com"]
[Source "ChessBase"]
[SourceQuality "1"]
[TimeControl "40/5400+30:1800+30"]

1. e4 {[%emt 0:00:00]} e6 {[%emt 0:00:00]} 2. d4 {[%emt 0:00:00]} d5 {[%emt 0:00:00]} 3. Nd2 {[%emt 0:00:00]} b6 {[%emt 0:00:17]} 4. Ngf3 {[%emt 0:13:27]} Nf6 {[%emt 0:00:10]} 5. e5 {[%emt 0:01:33]} Nfd7 {[%emt 0:00:03]} 6. c4 {[%emt 0:03:09]} Bb7 {[%emt 0:06:35]} 7. Bd3 {[%emt 0:01:55]} Nc6 {[%emt 0:15:13]} 8. O-O {[%emt 0:05:34]} Nb4 {[%emt 0:03:22]} 9. Bb1 {[%emt 0:01:54]} dxc4 {[%emt 0:02:51]} 10. Nxc4 {[%emt 0:01:51]} Be7 {[%emt 0:03:29]} 11. a3 {[%emt 0:04:36]} Nd5 {[%emt 0:00:06]} 12. Qd3 {[%emt 0:02:46]} Nf8 {[%emt 0:08:53]} 13. Na5 {[%emt 0:18:35]} bxa5 {[%emt 0:06:45]} 14. Qb5+ {[%emt 0:00:10]} Nd7 {[%emt 0:00:16]} 15. Qxb7 {[%emt 0:00:09]} N7b6 {[%emt 0:19:56]} 16. Qc6+ {[%emt 0:05:50]} Qd7 {[%emt 0:00:06]} 17. Qc2 {[%emt 0:00:18]} c5 {[%emt 0:04:13]} 18. Qe4 {[%emt 0:08:30]} h6 {[%emt 0:05:19]} 19. h4 {[%emt 0:06:51]} g6 {[%emt 0:04:52]} 20. h5 {[%emt 0:07:03]} g5 {[%emt 0:07:55]} 21. dxc5 {[%emt 0:04:01]} Bxc5 {[%emt 0:00:08]} 22. Bd2 {[%emt 0:02:00]} Qa4 {[%emt 0:04:23]} 23. b4 {[%emt 0:03:13]} axb4 {[%emt 0:00:05]} 24. Bd3 {[%emt 0:00:26]} bxa3 {[%emt 0:06:17]} 25. Qxa4+ {[%emt 0:01:10]} Nxa4 {[%emt 0:00:01]} 26. Bb5+ {[%emt 0:00:08]} Ke7 {[%emt 0:00:08]} 27. Bxa4 {[%emt 0:00:06]} g4 {[%emt 0:00:03]} 28. Ne1 {[%emt 0:03:32]} Nb6 {[%emt 0:00:18]} 29. Nd3 {[%emt 0:03:12]} Rhd8 {[%emt 0:00:46]} 30. Nxc5 {[%emt 0:02:19]} Rxd2 {[%emt 0:00:04]} 31. Rxa3 {[%emt 0:00:20]} Rc8 {[%emt 0:00:32]} 32. Ne4 {[%emt 0:00:26]} Rd4 {[%emt 0:01:04]} 33. Nd6 {[%emt 0:00:17]} Rc5 {[%emt 0:00:25]} 34. Bd1 {[%emt 0:00:39]} Rxe5 {[%emt 0:00:18]} 35. Nb7 {[%emt 0:00:35]} Red5 {[%emt 0:01:44]} 36. Be2 {[%emt 0:00:34]} Re5 {[%emt 0:00:24]} 37. Bd1 {[%emt 0:00:38]} Red5 {[%emt 0:00:17]} 38. Bb3 {[%emt 0:00:34]} Rxh5 {[%emt 0:00:45]} 39. Rxa7 {[%emt 0:00:23]} Rd7 {[%emt 0:00:32]} 40. Ra5 {[%emt 0:00:33]} Nd5 {[%emt 0:00:45]} 41. Rb5 {[%emt 0:12:10]} Nf4 {[%emt 0:03:54]} 42. Rxh5 {[%emt 0:03:08]} Rxb7 {[%emt 0:07:13]} 43. Rh4 {[%emt 0:02:50]} Rxb3 {[%emt 0:03:38]} 44. Rxg4 {[%emt 0:00:45]} Ng6 {[%emt 0:01:04]} 45. Ra4 {[%emt 0:02:01]} Kf6 {[%emt 0:01:44]} 46. Ra7 {[%emt 0:01:21]} Rb5 {[%emt 0:00:31]} 47. Rc1 {[%emt 0:02:00]} Rf5 {[%emt 0:00:24]} 48. g3 {[%emt 0:01:23]} h5 {[%emt 0:00:21]} 49. Rcc7 {[%emt 0:05:16]} 1/2-1/2

[Event "GER-chW 2019"]
[Site "Magdeburg"]
[Date "2019.05.28"]
[Round "3.2"]
[White "Kopylov, Luba"]
[Black "Burchardt, Brigitte"]
[Result "0-1"]
[ECO "E09"]
[WhiteElo "2078"]
[BlackElo "2094"]
[Annotator "NA"]
[PlyCount "120"]
[EventDate "2019.05.26"]
[EventType "tourn"]
[EventCountry "GER"]
[SourceTitle "playchess.com"]
[Source "ChessBase"]
[SourceQuality "1"]
[TimeControl "40/5400+30:1800+30"]

1. d4 {[%emt 0:00:00]} d5 {[%emt 0:00:00]} 2. c4 {[%emt 0:00:00]} e6 {[%emt 0:00:00]} 3. g3 {[%emt 0:00:34]} c6 {[%emt 0:00:07]} 4. Bg2 {[%emt 0:00:50]} Nf6 {[%emt 0:02:54]} 5. Nf3 {[%emt 0:00:19]} Be7 {[%emt 0:02:40]} 6. O-O {[%emt 0:00:33]} O-O {[%emt 0:00:05]} 7. Qc2 {[%emt 0:00:17]} Nbd7 {[%emt 0:04:10]} 8. Nbd2 {[%emt 0:00:30]} c5 {[%emt 0:22:40]} 9. dxc5 {[%emt 0:22:12] E09: Closed Catalan: Main Line: 7 Qc2 c6 8 Nbd2} Bxc5 {[%emt 0:05:23]} 10. a3 {[%emt 0:04:32]} a5 {[%emt 0:12:37]} 11. cxd5 $146 {[%emt 0:01:51]} ({Predecessor:} 11. Nb3 Be7 12. cxd5 Nxd5 13. Nbd4 Qc7 14. Qxc7 Nxc7 15. Bg5 Bc5 16. Nb3 Bb6 {1-0 (41) Malakhatko,V (2526)-Thompson,I (2261) Bad Homburg 2012}) 11... exd5 {[%emt 0:02:33]} 12. Nb3 {[%emt 0:06:40]} Bb6 {[%emt 0:02:06]} 13. Nbd4 {[%emt 0:01:18]} Nc5 {[%emt 0:02:55]} 14. b3 {[%emt 0:01:40]} Bd7 {[%emt 0:02:20]} 15. Bb2 {[%emt 0:02:18]} Rc8 {[%emt 0:01:21]} 16. Qb1 {[%emt 0:01:41]} a4 {[%emt 0:02:25]} 17. b4 {[%emt 0:05:42]} Nce4 $1 {[%emt 0:00:30]} 18. Qd3 {[%emt 0:04:20]} Qe7 {[%emt 0:03:35]} 19. Nh4 {[%emt 0:07:21]} g6 {[%emt 0:03:12]} 20. Bf3 {[%emt 0:03:33]} Rc7 {[%emt 0:09:52]} 21. Ng2 {[%emt 0:05:39]} Nd6 {[%emt 0:05:39]} 22. Ne3 {[%emt 0:04:59]} Nc4 {[%emt 0:03:36]} 23. Nxc4 {[%emt 0:11:06]} Rxc4 {[%emt 0:00:03]} ({But not} 23... dxc4 24. Qc3 $16) 24. Bxd5 {[%emt 0:04:04]} (24. Rac1 $11) 24... Rxd4 $1 {[%emt 0:00:46]} 25. Bxd4 {[%emt 0:00:15]} Nxd5 {[%emt 0:00:08]} 26. Bb2 {[%emt 0:00:56] [#]} (26. Bc5 $17 Bxc5 27. Qxd5 {[%mdl 64] Double Attack}) 26... Be6 {[%emt 0:01:19]} ({Black should play} 26... Nc7 $1 $19 27. Qf3 (27. Qc3 f6 $17) 27... Bc6) 27. e4 {[%emt 0:00:36] [#]} Nc7 $1 {[%emt 0:00:37]} 28. Rad1 {[%emt 0:01:21]} Bh3 {[%emt 0:05:11]} ({And not} 28... f6 29. Qd6 $14) 29. Rfe1 {[%emt 0:01:57]} Qe6 {[%emt 0:01:47]} 30. Qc3 {[%emt 0:03:05]} f6 {[%emt 0:00:05]} 31. Qc1 {[%emt 0:01:33]} (31. Rd3 $17) 31... Nb5 {[%emt 0:01:04]} 32. Qf4 {[%emt 0:00:27]} Bc7 $2 {[%emt 0:00:47]} (32... Qb3 $19 {and Black stays clearly on top.} 33. Bxf6 {[#]} Nd4 $1 {[%mdl 512]} 34. Rxd4 Bxd4 {[%mdl 64] Pin}) 33. Qf3 $2 {[%emt 0:00:36]} (33. Qe3 $17 {was necessary.}) 33... Bg4 {[%emt 0:01:14] Skewer} 34. Qe3 {[%emt 0:02:05]} Bxd1 {[%emt 0:00:05]} 35. Rxd1 {[%emt 0:00:07]} Be5 {[%emt 0:00:24]} 36. Bxe5 {[%emt 0:00:48]} fxe5 {[%emt 0:00:04]} ({Not} 36... Qxe5 37. Rd5 $17) 37. Rd5 {[%emt 0:00:10]} Nd4 {[%emt 0:00:16]} 38. f4 {[%emt 0:00:38]} (38. Kg2 $142) 38... Qg4 {[%emt 0:00:55]} 39. Kg2 {[%emt 0:01:31]} Ne6 {[%emt 0:01:50]} 40. Rxe5 Nxf4+ {[%emt 0:02:04]} 41. Kh1 {[%emt 0:30:52]} Nh3 {[%emt 0:31:50]} 42. Kg2 {[%emt 0:00:00]} Rf2+ {[%emt 0:00:00]} 43. Qxf2 {[%emt 0:00:00]} Nxf2 {[%emt 0:00:00]} 44. Kxf2 {[%emt 0:00:00]} Qd1 {[%emt 0:00:00]} 45. Re8+ {[%emt 0:00:00]} Kf7 {[%emt 0:00:00]} 46. Rb8 {[%emt 0:00:00]} Qd2+ {[%emt 0:00:00]} 47. Kf3 {[%emt 0:00:00]} Qd3+ {[%emt 0:00:00]} 48. Kf2 {[%emt 0:00:00]} Qxe4 {[%emt 0:00:00]} 49. h3 {[%emt 0:00:00]} h5 {[%emt 0:00:00]} 50. h4 {[%emt 0:00:00]} Qd5 {[%emt 0:00:00]} 51. Kg1 {[%emt 0:00:00]} Ke6 {[%emt 0:00:00]} 52. Re8+ {[%emt 0:00:00]} Kf5 {[%emt 0:00:00]} 53. Re3 {[%emt 0:00:00]} Kg4 {[%emt 0:00:00]} 54. Kf2 {[%emt 0:00:00]} Qa2+ {[%emt 0:00:00]} 55. Kf1 {[%emt 0:00:00]} Qd2 {[%emt 0:00:00]} 56. Re6 {[%emt 0:00:00]} Qd1+ {[%emt 0:00:00]} 57. Kf2 {[%emt 0:00:00]} Qf3+ {[%emt 0:00:00]} 58. Ke1 {[%emt 0:00:00]} Qxg3+ {[%emt 0:00:00]} 59. Kf1 {[%emt 0:00:00]} Qd3+ {[%emt 0:00:00]} 60. Kf2 {[%emt 0:00:13]} Qf5+ {[%emt 0:00:00]} 0-1

[Event "GER-chW 2019"]
[Site "Magdeburg"]
[Date "2019.05.28"]
[Round "3.3"]
[White "Koehler, Inken"]
[Black "Freter, Anke"]
[Result "1-0"]
[ECO "A22"]
[WhiteElo "1979"]
[BlackElo "1873"]
[Annotator "NA RC"]
[PlyCount "53"]
[EventDate "2019.05.26"]
[EventType "tourn"]
[EventCountry "GER"]
[SourceTitle "playchess.com"]
[Source "ChessBase"]
[SourceQuality "1"]
[TimeControl "40/5400+30:1800+30"]

1. c4 {[%emt 0:00:00]} Nf6 {[%emt 0:00:00]} 2. Nc3 {[%emt 0:00:00]} e5 {[%emt 0:00:58]} 3. g3 {[%emt 0:01:01]} d5 {[%emt 0:04:47]} 4. cxd5 {[%emt 0:00:16]} Nxd5 {[%emt 0:00:24]} 5. Bg2 {[%emt 0:00:20]} Nxc3 {[%emt 0:02:18]} 6. bxc3 {[%emt 0:00:08]} Bc5 {[%emt 0:02:46]} 7. d3 {[%emt 0:07:26]} O-O {[%emt 0:04:28]} 8. Nf3 {[%emt 0:07:21]} Nc6 {[%emt 0:02:19]} 9. O-O {[%emt 0:01:14]} h6 {[%emt 0:04:55]} 10. Bb2 {[%emt 0:08:06] A29: English Opening: Four Knights Variation with 4 g3} (10. a4 Re8 11. a5 a6 12. Nd2 Rb8 13. Ne4 Bf8 14. Qc2 Be6 15. Rd1 f5 16. Nd2 Kh8 17. Ba3 Bxa3 18. Rxa3 {½-½ (59) Galanov,S (2616)-Szczepanski,Z (2566) ICCF email 2011}) 10... Bb6 {[%emt 0:03:46]} 11. c4 $146 {[%emt 0:08:32]} ({Predecessor:} 11. d4 e4 12. Nd2 f5 13. e3 Kh7 14. a3 Qe7 15. c4 a6 16. Qc2 Bd7 17. Rfd1 Rad8 {1-0 (40) Moazaz,D (2073)-Rabeea,S (1941) Baghdad 2017}) 11... Qe7 {[%emt 0:04:00]} 12. Nd2 {[%emt 0:04:05]} Bd7 {[%emt 0:06:57]} 13. Ne4 {[%emt 0:03:02]} Nd8 {[%emt 0:10:47]} 14. a4 {[%emt 0:07:52]} c6 {[%emt 0:02:21]} (14... Ba5 $14) 15. Ba3 {[%emt 0:02:56]} c5 {[%emt 0:05:14]} 16. a5 {[%emt 0:03:05]} f5 {[%emt 0:00:52]} 17. axb6 {[%emt 0:01:32]} fxe4 {[%emt 0:00:25]} 18. bxa7 {[%emt 0:01:29]} exd3 {[%emt 0:01:49]} (18... Rxa7 $16 {is a better defense.} 19. Bxe4 Bc6 20. Bd5+ Bxd5) 19. Qxd3 {[%emt 0:00:48]} Be6 {[%emt 0:05:27]} 20. Qe3 {[%emt 0:03:58]} Qf7 {[%emt 0:01:08]} 21. Bxc5 {[%emt 0:11:57]} Re8 {[%emt 0:00:10]} 22. Rfc1 {[%emt 0:00:54]} Nc6 {[%emt 0:01:19]} 23. Qb3 {[%emt 0:08:19]} Kh8 {[%emt 0:02:25]} 24. Qb5 {[%emt 0:02:05]} Bg4 {[%emt 0:04:15]} 25. Bd5 {[%emt 0:02:53]} Qd7 {[%emt 0:04:55]} 26. Rcb1 {[%emt 0:01:29]} Bxe2 $18 {[%emt 0:08:35]} 27. Qxb7 {[%emt 0:00:26]} 1-0